bitfinex/quotes_ETHUSD_20220218
["timestamp","ask_amount","ask_price","bid_price","bid_amount"]
[1645196082942,0.1754,2849.8,2847.5,1.07164976]
[1645196082943,0.0059941,2849.6,2847.5,1.07164976]
[1645196083143,0.1754,2849.5,2847.5,1.07164976]
[1645196083342,0.0059941,2849.4,2847.5,1.07164976]
[1645196083746,0.0059941,2849.4,2847.7,1.7684162]
[1645196083941,0.0059941,2849.4,2848.6,1.00883573]
[1645196083942,0.561257,2849.4,2848.6,1.00883573]
[1645196084142,0.561257,2849.4,2848.7,3.4194]
[1645196084345,0.561257,2849.4,2848.7,0.1754]
[1645196084542,0.561257,2849.4,2848.4,0.1754]
[1645196084750,0.0059941,2849.4,2849.2,1.00883573]
[1645196085053,0.0059941,2850.0,2849.3,0.1754]
[1645196085244,0.22549354,2850.1,2849.9,1.00883573]
[1645196085245,0.23148764,2850.1,2849.9,1.00883573]
[1645196085503,0.22549354,2850.1,2849.9,1.00883573]
[1645196085696,0.22549354,2850.1,2849.6,1.7555218]
[1645196085992,0.22549354,2850.1,2849.5,3.3797]
[1645196085993,0.00550278,2849.6,2849.5,3.2043]
[1645196086191,0.00550278,2849.6,2849.1,2.77129417]
[1645196086394,0.00550278,2849.6,2849.2,0.8779738]
[1645196086593,0.23148764,2850.1,2849.2,0.8779738]
[1645196086793,0.18699042,2850.1,2849.2,0.8779738]
[1645196087194,0.18699042,2850.1,2849.9,1.00883573]
[1645196087195,0.18808825,2850.1,2849.9,1.00883573]
[1645196087394,0.18209415,2850.1,2849.9,0.8777318]
[1645196087792,0.18209415,2850.1,2849.7,1.7554636]
[1645196088193,0.18099632,2850.1,2849.1,0.13819997]
[1645196088393,0.18099632,2850.1,2849.6,0.8778543]
[1645196088595,0.18099632,2850.1,2849.6,1.00883573]
[1645196088596,0.18699042,2850.1,2849.6,1.00883573]
[1645196088794,0.18099632,2850.1,2849.6,1.00883573]
[1645196089439,0.18099632,2850.1,2849.7,1.7554363]
[1645196089637,0.18099632,2850.1,2849.2,1.9311908]
[1645196089840,0.18699042,2850.1,2849.1,0.13819997]
[1645196090040,0.18699042,2850.1,2849.1,1.01607557]
[1645196090439,0.18699042,2850.1,2849.3,1.00883573]
[1645196090639,0.18099632,2850.1,2849.2,1.7558272]
[1645196090841,0.18699042,2850.1,2849.7,1.00883573]
[1645196091140,0.18699042,2850.1,2849.3,1.77946393]
[1645196091141,0.18099632,2850.1,2849.3,1.77946393]
[1645196091341,0.18099632,2850.1,2849.2,0.1754]
[1645196091342,0.18699042,2850.1,2849.2,0.1754]
[1645196091648,3.99116427,2852.2,2850.1,6.5]
[1645196091649,3.6754,2851.7,2850.1,6.5]
[1645196091849,1.75491,2852.2,2850.2,0.1753]
[1645196092040,0.1166282,2852.4,2851.2,1.00883573]
[1645196092243,0.1166282,2852.4,2851.6,0.79125768]
[1645196092439,0.1166282,2852.4,2851.2,0.3]
[1645196092639,0.1166282,2852.4,2851.6,0.79125768]
[1645196092843,0.1166282,2852.4,2850.8,0.3]
[1645196093099,0.00581705,2851.8,2851.5,0.79125768]
[1645196093297,0.00581705,2851.8,2851.1,1.7546685]
[1645196093498,0.5979232,2851.6,2851.1,1.7546685]
[1645196094102,0.5979232,2851.6,2850.5,0.79125768]
[1645196094399,0.5979232,2851.6,2851.1,0.8774876]
[1645196095199,1.05274,2852.1,2851.2,1.7547373]
[1645196095408,0.01861716,2852.2,2851.2,1.7547373]
[1645196095409,0.18111685,2852.2,2851.2,1.7547373]
[1645196095598,0.1166282,2852.4,2851.2,3.5089673]
[1645196095799,0.1166282,2852.4,2851.5,0.79125768]
[1645196096000,0.1166282,2852.4,2851.5,6.5]
[1645196096199,0.1166282,2852.4,2852.1,0.8770443]
[1645196096399,0.1166282,2852.4,2852.1,0.79125768]
[1645196097255,0.1166282,2852.4,2852.1,1.66830198]
[1645196097456,0.1166282,2852.4,2852.1,0.8770443]
[1645196097659,0.1753,2853.7,2852.4,3.5]
[1645196097963,0.47779,2854.6,2852.5,1.753551]
[1645196097964,0.59308501,2853.4,2852.5,1.753551]
[1645196098360,0.59308501,2853.4,2852.5,2.45497141]
[1645196098561,0.59308501,2853.4,2852.5,1.57819591]
[1645196098764,0.87702,2853.2,2851.4,3.5]
[1645196098965,0.47018904,2852.6,2851.6,2.24852252]
[1645196099163,0.47018904,2852.6,2851.6,1.7543639]
[1645196099164,0.00137079,2852.4,2851.6,1.7543639]
[1645196099664,0.00137079,2852.4,2851.8,0.8771521]
[1645196100064,0.00137079,2852.4,2851.6,1.754348]
[1645196100266,0.00137079,2852.4,2851.2,0.0865636]
[1645196100700,0.87863079,2852.4,2851.2,0.0865636]
[1645196100900,0.54849993,2851.7,2851.2,0.0865636]
[1645196101098,0.87863079,2852.4,2851.5,0.79125768]
[1645196101099,0.1753,2852.3,2851.5,0.79125768]
[1645196101304,0.00137079,2852.4,2851.6,0.79125768]
[1645196101499,0.00137079,2852.4,2851.7,0.1753]
[1645196101700,0.00137079,2852.4,2851.2,1.841086]
[1645196101701,0.87733,2852.3,2851.3,0.1753]
[1645196101900,0.00137079,2852.4,2851.2,2.016386]
[1645196102099,0.00137079,2852.4,2851.5,0.8772899]
[1645196102100,0.87726,2852.3,2851.5,0.8772899]
[1645196102299,0.002103,2853.1,2851.9,0.79125768]
[1645196102300,20.5053,2853.0,2851.9,0.79125768]
[1645196102500,2.634093,2853.1,2851.7,0.79125768]
[1645196102802,0.00126414,2852.1,2851.2,3.9753]
[1645196103002,0.00126414,2852.1,2851.2,0.4753]
[1645196103199,0.62264874,2852.1,2851.7,8.0436141]
[1645196103599,0.62264874,2852.1,2851.7,6.289336]
[1645196103600,0.00126414,2852.1,2851.7,6.289336]
[1645196103802,0.00126414,2852.1,2852.0,0.79125768]
[1645196104004,9.83e-05,2853.3,2852.1,6.5012]
[1645196104256,9.83e-05,2853.3,2853.2,0.79125768]
[1645196104543,9.83e-05,2853.3,2852.2,0.18727375]
[1645196104544,0.53058397,2853.2,2852.5,0.79125768]
[1645196104743,0.60912876,2853.0,2852.5,0.79125768]
[1645196105041,0.53058397,2853.2,2851.9,0.1751]
[1645196105247,0.53058397,2853.2,2851.7,6.289336]
[1645196105248,0.00131945,2852.5,2851.7,6.289336]
[1645196105441,0.87737,2852.3,2851.7,6.289336]
[1645196105646,0.00131945,2852.5,2851.8,0.79125768]
[1645196105842,0.00131945,2852.5,2852.3,0.79125768]
[1645196106142,0.00131945,2852.5,2852.1,0.46049516]
[1645196106343,0.00131945,2852.5,2852.4,0.79125768]
[1645196106544,0.00131945,2852.5,2852.4,0.17629849]
[1645196106842,0.00131945,2852.5,2852.4,0.1751]
[1645196107041,0.00131945,2852.5,2852.2,0.8770212]
[1645196107445,0.00527701,2853.0,2852.2,6.8770212]
[1645196107641,0.00527701,2853.0,2852.2,7.7538912]
[1645196107844,0.00527701,2853.0,2852.3,3.8]
[1645196108100,0.00527701,2853.0,2852.3,0.1751]
[1645196108305,0.00527701,2853.0,2852.2,0.8770212]
[1645196108501,0.87716,2852.8,2852.2,0.8770212]
[1645196108700,0.87716,2852.8,2852.3,1.7540907]
[1645196108903,0.87706,2853.1,2852.3,1.7540907]
[1645196109102,0.53058397,2853.5,2852.3,1.7540907]
[1645196109504,0.877,2853.1,2852.3,1.7540907]
[1645196109905,0.53058397,2853.5,2852.3,1.7540907]
[1645196110105,0.53058397,2853.5,2852.4,0.1751]
[1645196110503,21.73746397,2853.5,2852.3,0.0008]
[1645196110703,1.75531418,2852.7,2852.3,0.0008]
[1645196111103,0.87803418,2852.7,2852.3,0.0008]
[1645196111603,0.48865835,2852.5,2852.3,0.0008]
[1645196112043,0.48865835,2852.5,2852.3,0.8779464]
[1645196112242,0.48865835,2852.5,2852.3,0.0008]
[1645196112442,0.66375835,2852.5,2852.3,0.0008]
[1645196112643,0.66375835,2852.5,2852.4,0.03565432]
[1645196113045,0.66375835,2852.5,2852.3,0.0008]
[1645196113248,20.33,2852.3,2851.3,8.67e-06]
[1645196113451,0.0122882,2851.6,2851.3,8.67e-06]
[1645196113646,0.1753,2851.5,2851.3,8.67e-06]
[1645196113845,0.3,2852.3,2850.3,0.13819997]
[1645196113846,0.1753,2851.8,2850.3,0.13819997]
[1645196114049,0.1753,2852.2,2850.5,0.01263034]
[1645196114244,20.33,2852.4,2851.2,1.7547692]
[1645196114446,0.47779,2852.8,2850.9,0.8775833]
[1645196114447,20.33,2852.0,2850.9,0.8775833]
[1645196114647,0.87756,2851.7,2850.3,0.13819997]
[1645196114848,0.52544625,2850.8,2850.1,3.4451]
[1645196115051,0.52544625,2850.8,2849.2,2.3265]
[1645196115252,0.52544625,2850.8,2849.7,1.7557]
[1645196115493,0.52544625,2850.8,2849.7,0.8779654]
[1645196115494,0.87789,2850.6,2849.7,0.8779654]
[1645196115693,1.75572,2850.6,2849.2,3.2297]
[1645196115896,0.47544625,2850.8,2850.1,20.022315]
[1645196116097,0.47544625,2850.8,2849.3,0.13819997]
[1645196116298,0.47544625,2850.8,2850.1,1.7552851]
[1645196116496,2.23110625,2850.8,2850.1,1.7552851]
[1645196116697,2.23110625,2850.8,2849.3,0.13819997]
[1645196116698,0.87775,2850.7,2849.3,0.13819997]
[1645196116897,1.05315,2850.7,2849.3,0.13819997]
[1645196117098,1.35315,2850.7,2849.3,0.13819997]
[1645196117300,20.34200334,2850.5,2850.0,21.71744631]
[1645196117595,21.20824,2850.2,2850.0,21.71744631]
[1645196117794,21.20824,2850.2,2850.0,16.24990308]
[1645196117795,1.05358,2850.1,2850.0,16.24990308]
[1645196117994,1.55185587,2850.1,2850.0,16.24990308]
[1645196118194,1.55185587,2850.1,2850.0,47.52519008]
[1645196118396,21.70645587,2850.1,2850.0,44.01446708]
[1645196118599,22.00645587,2850.1,2850.0,9.69722328]
[1645196118895,21.20817,2849.8,2849.0,7.0]
[1645196119094,0.48283563,2849.4,2849.0,7.0]
[1645196119543,0.1754,2850.1,2849.0,7.0]
[1645196119748,1.17824,2850.2,2849.0,7.0]
[1645196119947,0.87826,2849.5,2849.0,7.0]
[1645196120345,0.87826,2849.5,2849.3,0.00139424]
[1645196120548,21.20826,2849.5,2849.3,0.00139424]
[1645196120746,20.33,2849.3,2847.9,1.1352]
[1645196120948,0.87846,2848.8,2847.9,1.1352]
[1645196121149,20.33,2849.1,2847.5,0.0324615]
[1645196121150,20.33,2848.7,2847.5,3.5324615]
[1645196121345,20.33,2848.6,2848.0,12.992599]
[1645196121545,20.33,2848.6,2847.5,3.5324615]
[1645196121746,0.3,2848.7,2847.5,0.0324615]
[1645196121747,20.33,2848.4,2847.5,0.0324615]
[1645196121950,0.46871396,2847.6,2847.5,0.0324615]
[1645196122146,0.1754,2847.9,2847.5,0.0324615]
[1645196122347,5.01108447,2848.4,2847.5,0.0324615]
[1645196122348,0.1755,2849.3,2847.5,4.4749835]
[1645196122549,4.99880151,2850.5,2849.9,0.0191557]
[1645196122751,0.13956413,2850.6,2849.2,0.03534321]
[1645196122752,0.00191556,2849.6,2849.2,0.03534321]
[1645196123017,0.87853,2849.0,2847.5,0.0324615]
[1645196123200,0.65611574,2848.4,2847.5,0.0324615]
[1645196123398,0.87839,2849.0,2847.5,0.0324615]
[1645196123597,4.79735556,2849.6,2847.5,0.0324615]
[1645196123598,3.91891556,2849.6,2847.5,0.0324615]
[1645196123800,0.41891556,2849.6,2847.5,0.0324615]
[1645196123999,0.41891556,2849.6,2847.8,1.7567389]
[1645196124000,5.41771707,2849.6,2847.8,1.7567389]
[1645196124198,0.87831,2849.3,2847.5,0.0324615]
[1645196124398,0.47779,2849.0,2847.5,0.0324615]
[1645196124600,1.75756,2848.7,2847.5,0.0324615]
[1645196125004,0.1755,2849.1,2847.6,0.8785192]
[1645196125299,0.1755,2849.1,2847.5,0.0324615]
[1645196125300,0.51095588,2848.2,2847.5,0.0324615]
[1645196125698,4.99880151,2847.7,2847.5,0.0292615]
[1645196125898,7.0924,2847.6,2846.2,2.39222148]
[1645196126099,0.58870607,2846.4,2846.2,2.39222148]
[1645196126298,0.1756,2846.3,2846.2,2.39222148]
[1645196126502,1.7585,2847.0,2846.2,2.39222148]
[1645196126757,0.1756,2847.4,2846.2,28.349645]
[1645196126957,0.3,2847.7,2845.9,2.6364427]
[1645196127151,0.1756,2847.9,2846.2,0.8789639]
[1645196127352,0.51417248,2847.2,2846.2,0.8789639]
[1645196127553,0.51417248,2847.2,2845.2,0.13819997]
[1645196127554,0.87914,2846.8,2845.2,0.13819997]
[1645196127751,1.12914,2846.8,2846.6,0.5]
[1645196128153,0.25,2846.8,2845.2,0.13819997]
[1645196128354,0.1756,2846.7,2845.2,0.13819997]
[1645196128753,0.1756,2846.7,2845.2,1.89655947]
[1645196128952,3.11564,2847.2,2845.2,1.89655947]
[1645196128953,1.1756,2847.1,2845.2,1.89655947]
[1645196129352,0.8793,2846.6,2845.2,0.13819997]
[1645196129553,0.8793,2846.6,2845.5,0.49236965]
[1645196129554,0.1756,2846.5,2845.5,0.49236965]
[1645196129755,0.1756,2847.0,2845.5,0.49236965]
[1645196129953,0.1756,2847.0,2845.2,0.13819997]
[1645196130158,0.1756,2847.0,2845.2,2.77520407]
[1645196130353,2.93785,2847.2,2845.2,2.77520407]
[1645196130354,0.87921,2846.8,2845.2,0.13819997]
[1645196130635,0.1756,2846.7,2845.2,0.13819997]
[1645196130812,0.87924,2846.4,2845.2,0.13819997]
[1645196131012,0.60051299,2845.8,2845.2,0.13819997]
[1645196131214,0.60051299,2845.8,2844.9,4.358]
[1645196131417,0.60051299,2845.8,2845.3,14.100857]
[1645196131615,0.60051299,2845.8,2845.0,25.950715]
[1645196131825,0.60051299,2845.8,2845.4,14.640626]
[1645196132013,0.60051299,2845.8,2844.5,2.39255029]
[1645196132014,0.87936,2845.7,2844.5,2.39255029]
[1645196132216,0.77779,2845.6,2844.5,2.39255029]
[1645196132416,0.4756,2845.6,2844.5,2.39255029]
[1645196132615,1.7591,2845.5,2844.5,2.39255029]
[1645196132817,0.1756,2845.4,2844.5,2.39255029]
[1645196133017,1.75937,2845.2,2843.5,3.1653]
[1645196133220,1.75937,2845.2,2844.6,16.16463871]
[1645196133221,4.99880151,2844.9,2844.6,16.16463871]
[1645196133417,20.8056,2845.1,2843.4,2.39473241]
[1645196133418,20.34251607,2844.6,2843.4,2.39473241]
[1645196133617,0.0128986,2844.1,2843.4,2.39473241]
[1645196133819,0.0128986,2844.1,2842.7,2.39255029]
[1645196134018,0.88025,2844.1,2843.5,88.621968]
[1645196134282,0.82054,2845.2,2843.9,0.48106605]
[1645196134480,0.82054,2845.2,2844.9,0.00134447]
[1645196134680,1.82449,2845.2,2844.9,0.00134447]
[1645196134887,1.93479,2845.0,2844.9,0.00134447]
[1645196135075,0.1756,2845.0,2844.9,0.00134447]
[1645196135576,0.1756,2845.0,2843.7,3.2986]
[1645196135577,6.5,2844.9,2843.7,3.2986]
[1645196135776,6.5,2844.9,2843.1,3.5]
[1645196135777,0.58840467,2844.1,2843.1,3.5]
[1645196136077,0.58840467,2844.1,2842.3,0.13819997]
[1645196136078,0.88003,2843.9,2842.3,1.89806497]
[1645196136278,0.1758,2844.0,2842.4,3.5]
[1645196136279,0.3,2843.8,2842.4,3.5]
[1645196136477,0.58840467,2844.1,2842.3,1.89806497]
[1645196136677,0.58840467,2844.1,2842.6,0.8299291]
[1645196136891,0.58840467,2844.1,2842.3,1.89806497]
[1645196136892,0.88003,2843.7,2842.3,1.89806497]
[1645196137081,0.83527177,2843.7,2842.3,0.13819997]
[1645196137278,0.83527177,2843.7,2842.4,24.162296]
[1645196137279,0.1758,2843.6,2842.4,24.162296]
[1645196137479,0.1758,2843.6,2842.4,18.226962]
[1645196137480,1.93622,2843.6,2842.4,18.226962]
[1645196137680,5.29880151,2843.5,2842.5,18.036652]
[1645196137884,0.3,2843.7,2842.1,3.3279]
[1645196137885,0.46472384,2843.1,2842.1,3.3279]
[1645196138099,0.1758,2843.0,2842.1,3.3279]
[1645196138398,0.1758,2843.0,2841.2,2.3768]
[1645196138598,0.1758,2843.0,2842.2,2.048174]
[1645196138599,1.93656,2843.0,2842.2,2.048174]
[1645196138798,1.93656,2843.0,2840.6,2.3768]
[1645196138799,6.5,2842.9,2840.6,2.3768]
[1645196138995,6.5,2842.9,2840.6,3.2438]
[1645196138996,0.88068,2841.9,2840.6,3.2438]
[1645196139200,0.88068,2841.8,2840.6,3.2438]
[1645196139395,1.18068,2841.8,2840.7,52.618168]
[1645196139599,0.4759,2841.8,2840.7,69.931637]
[1645196139800,0.4759,2841.8,2840.6,0.867]
[1645196139801,2.64254,2841.7,2840.6,0.867]
[1645196139997,1.05671,2841.6,2840.6,0.867]
[1645196140197,1.76162,2841.5,2840.7,72.180864]
[1645196140398,0.4759,2841.4,2841.1,0.00132605]
[1645196140795,1.93752,2841.5,2841.4,1.12769999]
[1645196140997,1.76162,2841.5,2841.4,1.12769999]
[1645196141198,1.76162,2841.5,2841.4,3.79086099]
[1645196141399,1.93752,2841.5,2841.4,1.12769999]
[1645196141853,6.5,2841.4,2841.1,0.00132605]
[1645196142060,1.05674,2841.4,2841.1,0.00132605]
[1645196142258,1.05674,2841.4,2840.0,0.116]
[1645196142259,26.83,2841.3,2840.0,0.116]
[1645196142457,0.36766413,2840.1,2840.0,0.116]
[1645196142857,0.54356413,2840.1,2839.1,3.3023]
[1645196143054,0.54356413,2840.1,2839.9,0.86721]
[1645196143055,0.36766413,2840.1,2839.9,0.86721]
[1645196143860,0.36766413,2840.1,2840.0,25.286714]
[1645196144056,0.36766413,2840.1,2840.0,34.765778]
[1645196144057,0.31766413,2840.1,2840.0,34.765778]
[1645196144256,0.31766413,2840.1,2840.0,14.700769]
[1645196144456,0.31766413,2840.1,2840.0,20.347025]
[1645196144659,0.31766413,2840.1,2839.3,28.587603]
[1645196144862,0.1759,2840.0,2839.2,0.04149491]
[1645196145058,0.31766413,2840.1,2839.4,17.07000607]
[1645196145262,0.31766413,2840.1,2838.2,0.01200465]
[1645196145263,0.31766413,2840.1,2839.3,17.072644]
[1645196145508,0.31766413,2840.1,2839.5,12.161463]
[1645196145702,0.31766413,2840.1,2839.4,11.17729007]
[1645196145904,0.31766413,2840.1,2839.6,11.261364]
[1645196146105,0.31766413,2840.1,2839.5,39.345885]
[1645196146304,0.31766413,2840.1,2839.7,32.069327]
[1645196146505,0.31766413,2840.1,2839.6,33.084418]
[1645196146709,1.31766413,2840.1,2839.4,0.04035807]
[1645196147106,1.61766413,2840.1,2839.2,1.7617483]
[1645196147409,1.61766413,2840.1,2839.0,0.04263176]
[1645196147606,1.61766413,2840.1,2839.9,0.02944914]
[1645196147808,1.3,2840.1,2839.9,0.02944914]
[1645196148207,1.3,2840.1,2839.9,4.914e-05]
[1645196148411,0.1759,2840.0,2839.9,4.914e-05]
[1645196149108,1.4759,2840.1,2839.9,0.00127145]
[1645196149964,0.88132,2840.0,2839.0,0.52243176]
[1645196150160,0.3,2839.4,2838.2,0.4798]
[1645196150357,0.3,2839.4,2837.6,6.3322]
[1645196150358,1.05777,2839.3,2837.6,6.3322]
[1645196150556,0.8815882,2839.1,2837.9,2.64462]
[1645196150756,2.64479,2839.7,2837.9,2.64462]
[1645196150757,0.1761,2839.0,2837.9,2.64462]
[1645196150959,0.3,2839.1,2838.6,0.63029319]
[1645196151257,0.4770191,2839.7,2838.5,1.76278]
[1645196151258,0.1761,2839.3,2838.5,1.76278]
[1645196151455,0.8814812,2839.4,2838.5,1.76278]
[1645196151661,0.1761,2839.3,2838.5,1.76278]
[1645196151857,0.4761,2839.3,2838.5,1.76278]
[1645196152059,0.88147,2839.1,2838.5,1.76278]
[1645196152261,6.1700758,2840.5,2838.5,1.76278]
[1645196152262,1.0,2840.1,2839.2,0.0336681]
[1645196152659,46.118123,2840.0,2839.2,0.0336681]
[1645196152857,0.88103,2841.5,2839.2,0.0336681]
[1645196152858,0.01239858,2842.7,2839.6,0.01207864]
[1645196153103,0.88043,2842.5,2841.3,0.88054]
[1645196153308,0.1759,2843.9,2841.4,3.63819997]
[1645196153501,0.1759,2844.2,2841.7,0.88009]
[1645196153702,4.99880151,2844.7,2841.7,1.76013]
[1645196153703,0.1758,2844.3,2841.7,1.76013]
[1645196153900,6.75871471,2844.7,2841.7,1.76013]
[1645196153901,0.1758,2844.1,2842.3,0.01216064]
[1645196154102,1.7599132,2844.7,2842.3,0.01216064]
[1645196154103,0.81276814,2844.3,2843.0,0.61280582]
[1645196154402,1.75965,2844.7,2842.3,1.37171064]
[1645196154403,68.940448,2844.0,2843.4,0.4798]
[1645196154602,0.00436301,2844.4,2843.5,1.75955]
[1645196154603,78.250376,2844.2,2843.5,1.75955]
[1645196154801,77.506888,2843.9,2843.5,1.75955]
[1645196155007,0.00436301,2844.4,2843.5,1.75955]
[1645196155501,94.746853,2844.3,2843.5,1.75955]
[1645196155702,94.746853,2844.3,2843.6,0.4798]
[1645196155703,67.044365,2844.3,2843.6,0.4798]
[1645196155902,0.1758,2845.3,2843.7,0.417]
[1645196156101,1.7588918,2846.9,2843.7,0.417]
[1645196156102,0.1756,2845.7,2843.7,3.917]
[1645196156302,4.99880151,2846.7,2843.9,0.01246948]
[1645196156303,100.0,2845.2,2843.9,0.01246948]
[1645196156503,0.04035806,2846.1,2844.3,0.8791246]
[1645196156504,100.0,2845.6,2844.3,0.8791246]
[1645196156783,0.1756,2846.0,2844.9,0.87909]
[1645196156784,94.72543,2845.1,2844.9,0.87909]
[1645196156977,0.1756,2846.0,2844.9,0.87909]
[1645196157177,0.1756,2846.5,2845.0,0.4798]
[1645196157382,0.1756,2846.5,2845.0,2.23792]
[1645196157582,5.01164164,2847.6,2845.0,2.23792]
[1645196157583,0.04206333,2846.4,2845.1,0.878879]
[1645196157781,20.5056,2847.5,2845.3,0.87895]
[1645196157979,20.5056,2847.5,2845.0,2.23792]
[1645196157980,0.49533081,2846.8,2845.0,0.4798]
[1645196158280,0.1756,2846.7,2845.0,0.4798]
[1645196158481,0.87933,2846.5,2845.4,1.75864]
[1645196158678,0.1756,2846.4,2845.4,1.75864]
[1645196158883,5.00476935,2846.3,2844.9,6.289336]
[1645196159082,0.21075788,2845.3,2844.9,6.289336]
[1645196159281,0.38635788,2845.3,2844.9,6.289336]
[1645196159582,0.00596784,2846.3,2845.0,5.37949]
[1645196159583,0.1756,2846.1,2845.0,5.37949]
[1645196159780,0.1756,2846.2,2845.0,5.85929]
[1645196159983,0.5,2847.1,2845.0,5.85929]
[1645196159984,0.1756,2847.0,2845.0,5.85929]
[1645196160185,0.1756,2847.0,2846.2,0.65660045]
[1645196160381,0.00596776,2846.5,2846.2,0.65660045]
[1645196160604,0.00596776,2846.5,2846.3,0.87878]
[1645196160802,0.00596776,2846.5,2846.3,1.35858]
[1645196160998,0.1756,2848.0,2846.3,1.35858]
[1645196160999,0.1756,2848.0,2846.3,7.85858]
[1645196161200,20.0,2848.1,2847.4,0.47930579]
[1645196161608,14.73012,2848.1,2847.4,0.47930579]
[1645196161803,14.73012,2848.1,2847.4,1.35779579]
[1645196162107,0.00110068,2848.8,2847.4,1.35779579]
[1645196162108,0.00110068,2848.8,2847.5,6.92909547]
[1645196162301,0.00110068,2848.8,2848.6,0.50660332]
[1645196162501,0.00110068,2848.8,2848.6,0.64480329]
[1645196162701,4.99880151,2850.5,2848.7,0.4798]
[1645196162899,0.37380202,2849.6,2848.8,0.87804]
[1645196163098,0.1754,2849.5,2848.1,0.4798]
[1645196163499,4.99880151,2849.4,2847.6,0.4798]
[1645196163698,0.00191556,2849.6,2847.6,0.4798]
[1645196163699,0.57317472,2847.7,2847.6,0.4798]
[1645196163902,0.89154464,2848.9,2846.6,0.4798]
[1645196164100,0.1754,2848.8,2847.2,2.2369]
[1645196164345,41.642355,2848.8,2847.2,2.2369]
[1645196164545,37.405748,2848.7,2847.2,2.2369]
[1645196164744,0.1754,2848.6,2847.2,2.2369]
[1645196164947,0.53695862,2848.5,2847.2,2.2369]
[1645196165347,27.096343,2848.4,2847.2,2.2369]
[1645196165646,23.325528,2848.3,2847.2,2.2369]
[1645196165845,0.1754,2848.2,2847.2,2.2369]
[1645196166049,0.53237997,2847.9,2847.2,2.2369]
[1645196166646,0.83237997,2847.9,2846.8,0.4798]
[1645196166846,0.83237997,2847.9,2846.6,3.51327]
[1645196166847,0.1756,2847.8,2846.6,3.99307]
[1645196167446,0.83237997,2847.9,2846.6,3.99307]
[1645196167646,0.1756,2848.7,2846.6,3.99307]
[1645196167847,0.1756,2848.7,2846.6,7.49307]
[1645196168104,0.417,2849.7,2847.4,0.87837]
[1645196168105,0.19775032,2849.5,2847.4,0.87837]
[1645196168306,0.00597209,2847.9,2847.5,0.01252674]
[1645196168501,0.00597209,2847.9,2847.5,0.54328715]
[1645196168701,7.209e-05,2847.9,2847.8,5.0]
[1645196168903,0.00149256,2848.8,2847.9,6.5]
[1645196169104,0.00149256,2848.8,2848.1,0.87814]
[1645196169302,0.00191556,2849.6,2848.3,5.0]
[1645196169500,0.00149274,2848.8,2848.4,3.92823]
[1645196169904,0.1754,2850.8,2848.6,5.0]
[1645196170103,0.1754,2850.8,2848.5,7.37771]
[1645196170104,0.72619895,2850.9,2848.7,0.417]
[1645196170302,0.1754,2851.5,2848.8,0.13819997]
[1645196170705,0.1754,2851.5,2848.9,0.87776]
[1645196170905,0.1754,2851.5,2849.3,2.63314]
[1645196170906,0.53411126,2851.0,2849.3,2.63314]
[1645196171102,0.10977402,2851.0,2849.4,8.5]
[1645196171303,6.1648,2852.7,2849.4,8.917]
[1645196171304,0.1754,2851.7,2849.4,8.917]
[1645196171504,0.00596413,2852.0,2849.5,2.63184]
[1645196171767,0.18126413,2852.6,2849.6,0.417]
[1645196171964,0.00596413,2852.0,2850.9,0.52118199]
[1645196172164,0.1753,2852.1,2850.2,0.4798]
[1645196172569,0.38325028,2852.2,2850.8,3.5209267]
[1645196172767,0.1753,2852.9,2850.8,3.5209267]
[1645196172768,0.27488233,2852.9,2850.8,3.5209267]
[1645196172966,0.27488233,2852.9,2851.1,0.87734]
[1645196172967,0.101668,2852.9,2851.1,0.87734]
[1645196173168,0.00149403,2851.6,2851.2,0.4798]
[1645196173567,0.00149403,2851.6,2850.6,0.4798]
[1645196173769,0.65661117,2851.5,2850.6,0.4798]
[1645196173968,0.00149403,2851.6,2850.7,1.755]
[1645196174170,0.00597521,2852.0,2850.7,1.755]
[1645196174171,0.00597521,2852.0,2850.7,1.748]
[1645196174366,3.17538503,2853.2,2850.7,1.748]
[1645196174367,4.6753,2853.0,2850.7,1.748]
[1645196174567,0.3,2852.6,2850.7,1.748]
[1645196174768,0.87732,2852.8,2850.7,1.748]
[1645196174769,0.1753,2852.5,2850.7,1.748]
[1645196174968,0.00149395,2852.1,2850.8,0.47527643]
[1645196175269,0.0059749,2852.6,2851.0,2.63166]
[1645196175502,0.1753,2852.5,2851.0,2.63166]
[1645196175695,0.0059749,2852.6,2851.0,2.63166]
[1645196175900,0.50845913,2852.5,2851.3,0.53624259]
[1645196176095,0.0059749,2852.6,2851.5,0.87712]
[1645196176297,0.10880922,2852.6,2851.7,0.4798]
[1645196176499,0.10880922,2852.6,2851.7,3.11081]
[1645196176700,0.10283432,2852.6,2851.7,3.11081]
[1645196176901,0.15265319,2852.6,2851.7,3.11081]
[1645196177101,0.15265319,2852.6,2851.9,0.58893171]
[1645196177299,0.86492981,2852.6,2851.9,1.06873171]
[1645196177500,0.1753,2853.6,2852.1,0.87699]
[1645196177904,0.04035807,2853.5,2852.1,0.87699]
[1645196178100,0.1751,2853.4,2852.9,0.65106099]
[1645196178299,0.1751,2853.4,2852.1,0.87699]
[1645196178300,0.53658829,2852.9,2852.1,0.87699]
[1645196178707,0.04035807,2853.5,2852.2,8.917]
[1645196178905,0.04035807,2853.5,2852.3,3.917]
[1645196179118,0.40932918,2855.3,2852.9,0.4798]
[1645196179351,0.53505196,2854.3,2853.6,0.8764]
[1645196179552,0.01266639,2854.1,2852.1,3.50655]
[1645196179748,0.01266639,2854.1,2851.5,1.2366]
[1645196179749,3.51266639,2854.1,2851.5,1.2366]
[1645196179948,0.01212473,2853.4,2851.5,1.2366]
[1645196180150,0.87727,2853.2,2851.5,1.2366]
[1645196180348,0.1751,2853.1,2851.5,1.2366]
[1645196180549,0.87727,2853.2,2851.5,4.74412]
[1645196180750,2.91060496,2854.0,2851.6,0.1751]
[1645196180951,2.75317941,2854.0,2852.1,1.75399]
[1645196181161,0.87705,2853.8,2852.3,5.0]
[1645196181350,0.1751,2854.6,2852.1,1.75399]
[1645196181351,0.75698922,2854.6,2852.9,0.0008]
[1645196181552,0.58188922,2854.6,2853.1,0.49668561]
[1645196181793,0.5,2854.8,2853.3,5.0]
[1645196181955,1.00545141,2855.9,2853.3,5.0]